bitfinex/quotes_ETHUSD_20241022
["timestamp","ask_amount","ask_price","bid_price","bid_amount"]
[1729586331159,0.8086,2638.3,2637.8,3.79095]
[1729586332895,4.59893,2638.3,2637.9,0.05085588]
[1729586333391,4.5507,2638.6,2638.0,3.79063]
[1729586333569,8.72773107,2638.6,2638.0,7.58128]
[1729586333767,4.18569735,2638.9,2638.3,3.7903]
[1729586334011,4.18569735,2638.9,2638.4,3.79014]
[1729586334154,3.78947,2638.9,2638.4,3.8408128]
[1729586334361,0.8046,2639.0,2638.7,3.78971]
[1729586334898,0.8046,2639.0,2638.8,0.0505264]
[1729586335381,3.76951231,2639.0,2638.6,3.78985]
[1729586335583,0.42505143,2639.2,2638.9,0.86036974]
[1729586335901,0.40614577,2639.2,2639.0,0.12584232]
[1729586336099,0.39614577,2639.2,2639.0,0.12584232]
[1729586336455,0.39614577,2639.2,2639.0,0.05006446]
[1729586336799,0.39614577,2639.2,2639.1,3.86494411]
[1729586337155,0.39614577,2639.2,2639.1,4.76641684]
[1729586337875,0.01,2639.8,2639.3,3.78878]
[1729586338092,0.01,2639.8,2639.4,0.04977524]
[1729586338579,3.79818,2639.8,2639.4,0.04977524]
[1729586339462,0.01,2639.8,2639.4,0.04977524]
[1729586340163,5.1280736,2640.0,2639.8,3.78816]
[1729586340361,5.1280736,2640.0,2639.5,0.8298]
[1729586340568,5.1280736,2640.0,2639.4,4.22230076]
[1729586340569,11.88096591,2640.0,2639.9,0.04959238]
[1729586340782,11.88096591,2640.0,2639.4,3.78864]
[1729586340783,11.88096591,2640.0,2639.5,3.78857]
[1729586340982,8.09298591,2640.0,2639.6,3.78837]
[1729586341218,8.09298591,2640.0,2639.6,3.83807209]
[1729586341508,0.83,2639.7,2639.6,0.04970209]
[1729586341885,0.83,2639.7,2639.3,3.7888]
[1729586342074,0.83,2639.7,2639.4,0.0491526]
[1729586342706,2.96491231,2639.6,2639.4,0.0491526]
[1729586343005,4.61834,2639.7,2639.1,3.78907]
[1729586343208,0.83,2639.7,2639.5,0.04912174]
[1729586343413,8.86398591,2640.0,2639.5,3.86435238]
[1729586343615,5.1280736,2640.0,2639.7,3.78829]
[1729586343828,5.1280736,2640.0,2639.8,3.78814]
[1729586344035,5.1280736,2640.0,2639.8,3.83715202]
[1729586344624,5.1280736,2640.0,2639.9,4.66757224]
[1729586344919,5.1280736,2640.0,2639.9,4.71658766]
[1729586345591,5.1280736,2640.0,2639.9,4.64083542]
[1729586346383,5.1280736,2640.0,2639.9,0.04901542]
[1729586347621,5.1280736,2640.0,2639.9,3.83703542]
[1729586348822,5.1280736,2640.0,2639.9,4.59955696]
[1729586349245,5.1280736,2640.0,2639.9,5.35935696]
[1729586351084,5.1280736,2640.0,2639.9,1.57133696]
[1729586351418,5.1280736,2640.0,2639.9,5.35935696]
[1729586353431,5.1280736,2640.0,2639.9,0.80881542]
[1729586353581,5.1280736,2640.0,2639.9,3.83703542]
[1729586354754,5.1280736,2640.0,2639.9,10.68209644]
[1729586355042,5.1280736,2640.0,2639.9,7.64143542]
[1729586355409,5.1280736,2640.0,2639.9,7.71717703]
[1729586355607,5.1280736,2640.0,2639.9,9.08846035]
[1729586360516,5.1280736,2640.0,2639.9,12.05337266]
[1729586361165,5.1280736,2640.0,2639.9,12.60337266]
[1729586363519,5.1280736,2640.0,2639.9,9.08846035]
[1729586363937,5.1280736,2640.0,2639.9,6.08846035]
[1729586364231,5.1280736,2640.0,2639.9,5.28406035]
[1729586364626,5.1280736,2640.0,2639.9,5.35980672]
[1729586364831,5.1280736,2640.0,2639.9,5.35980529]
[1729586365246,5.1280736,2640.0,2639.9,5.28406035]
[1729586365886,5.1280736,2640.0,2639.9,8.28406035]
[1729586366488,5.1280736,2640.0,2639.9,11.79897266]
[1729586366694,5.1280736,2640.0,2639.9,9.64376035]
[1729586366845,5.1280736,2640.0,2639.9,12.60867266]
[1729586367591,5.1280736,2640.0,2639.9,9.64376035]
[1729586371280,5.1280736,2640.0,2639.9,9.09376035]
[1729586371483,5.1280736,2640.0,2639.9,8.28406035]
[1729586371880,5.1280736,2640.0,2639.9,3.83703542]
[1729586373077,5.1280736,2640.0,2639.9,6.83703542]
[1729586376388,5.1280736,2640.0,2639.9,8.80281325]
[1729586376588,5.1280736,2640.0,2639.9,8.16083542]
[1729586377289,5.1280736,2640.0,2639.9,10.52805348]
[1729586377489,5.1280736,2640.0,2639.9,9.889948]
[1729586378466,5.1280736,2640.0,2639.9,12.6517024]
[1729586378668,5.1280736,2640.0,2639.9,8.566148]
[1729586380573,5.1280736,2640.0,2639.9,11.3279024]
[1729586381376,5.1280736,2640.0,2639.9,5.566148]
[1729586381702,5.1280736,2640.0,2639.9,8.34377286]
[1729586383675,5.1280736,2640.0,2639.9,3.83703542]
[1729586384190,5.1280736,2640.0,2639.9,6.21824766]
[1729586384393,5.1280736,2640.0,2639.9,6.21833244]
[1729586384721,5.1280736,2640.0,2639.9,3.83703542]
[1729586385021,5.1280736,2640.0,2639.9,6.21832102]
[1729586385719,5.1280736,2640.0,2639.9,3.83703542]
[1729586386095,5.1280736,2640.0,2639.9,3.91278692]
[1729586386295,5.1280736,2640.0,2639.9,6.29407252]
[1729586386623,5.1280736,2640.0,2639.9,3.91278692]
[1729586387785,5.1280736,2640.0,2639.9,3.83703542]
[1729586387982,5.1280736,2640.0,2639.9,5.82159151]
[1729586388325,5.1280736,2640.0,2639.9,3.83703542]
[1729586388526,5.1280736,2640.0,2639.9,5.82164313]
[1729586388731,5.1280736,2640.0,2639.9,5.89739474]
[1729586389089,5.1280736,2640.0,2639.9,5.82164313]
[1729586389289,5.1280736,2640.0,2639.9,4.80559089]
[1729586389521,5.1280736,2640.0,2639.9,7.18686923]
[1729586389712,5.1280736,2640.0,2639.9,4.80559089]
[1729586389911,5.1280736,2640.0,2639.9,6.7913114]
[1729586390393,5.1280736,2640.0,2639.9,6.79132568]
[1729586390589,5.1280736,2640.0,2639.9,4.80559089]
[1729586391017,5.1280736,2640.0,2639.9,6.79132568]
[1729586391336,5.1280736,2640.0,2639.9,6.79132918]
[1729586391627,5.1280736,2640.0,2639.9,4.80559089]
[1729586393396,5.1280736,2640.0,2639.9,7.80559089]
[1729586396747,5.1280736,2640.0,2639.9,4.80559089]
[1729586401555,5.1280736,2640.0,2639.9,4.88134229]
[1729586402127,5.1280736,2640.0,2639.9,4.80559089]
[1729586402445,5.1280736,2640.0,2639.9,6.79281627]
[1729586402744,5.1280736,2640.0,2639.9,6.79269622]
[1729586402946,5.1280736,2640.0,2639.9,4.80559089]
[1729586403323,5.1280736,2640.0,2639.9,4.88134122]
[1729586403928,5.1280736,2640.0,2639.9,6.79269622]
[1729586404431,5.1280736,2640.0,2639.9,4.80559089]
[1729586404852,5.1280736,2640.0,2639.9,3.83703542]
[1729586405033,5.9400736,2640.0,2639.9,3.83703542]
[1729586406266,5.9400736,2640.0,2639.9,3.91278689]
[1729586406928,5.1280736,2640.0,2639.9,3.91278689]
[1729586407137,5.1280736,2640.0,2639.9,3.83703542]
[1729586407318,5.1280736,2640.0,2639.9,6.7854489]
[1729586408133,5.1280736,2640.0,2639.9,4.79827259]
[1729586408356,5.1280736,2640.0,2639.9,3.83703542]
[1729586410362,5.1280736,2640.0,2639.9,0.04901542]
[1729586410363,8.90858591,2640.0,2639.9,0.04901542]
[1729586410672,8.90858591,2640.0,2639.4,1.98745448]
[1729586410673,0.8056,2639.7,2639.4,3.78864]
[1729586411166,0.8056,2639.7,2639.3,1.98745448]
[1729586411402,0.8056,2639.7,2639.2,3.78892]
[1729586411521,2.97491231,2639.6,2639.0,5.77666448]
[1729586411721,0.01,2639.6,2639.4,3.78871]
[1729586411919,0.01,2639.6,2639.4,7.57735]
[1729586412164,0.01,2639.6,2639.4,3.78864]
[1729586412361,0.01,2639.6,2639.2,3.78893]
[1729586412578,2.97491231,2639.6,2639.2,3.78893]
[1729586412730,0.8224,2639.5,2639.3,3.78879]
[1729586413159,0.8224,2639.5,2639.2,3.78901]
[1729586413465,0.01,2639.2,2638.9,3.78938]
[1729586413827,0.8224,2639.3,2639.1,3.78904]
[1729586414063,0.8224,2639.3,2639.2,3.78902]
[1729586414479,0.8243,2639.6,2639.2,3.78902]
[1729586414831,0.8243,2639.6,2639.3,3.78886]
[1729586415031,0.8243,2639.6,2639.4,3.78871]
[1729586416268,0.8243,2639.6,2639.3,3.78886]
[1729586416776,0.8243,2639.6,2639.3,7.57766]
[1729586416931,0.8243,2639.6,2639.3,3.7888]
[1729586417132,0.8243,2639.6,2639.1,3.78904]
[1729586417367,0.01,2639.3,2638.9,3.78937]
[1729586418080,0.01,2639.3,2639.0,3.86507799]
[1729586418639,0.01,2639.3,2639.1,3.78915]
[1729586419139,0.01,2639.3,2639.0,0.07577799]
[1729586419337,0.01,2639.3,2638.9,3.78937]
[1729586419570,0.8255,2639.2,2638.8,3.78956]
[1729586419971,0.8255,2639.2,2638.7,3.80856566]
[1729586420282,0.8255,2639.2,2638.9,3.78938]
[1729586421185,0.8255,2639.2,2638.7,4.47045657]
[1729586421339,0.8255,2639.2,2638.8,3.78951]
[1729586421985,0.8255,2639.2,2638.7,4.47045657]
[1729586422283,0.8255,2639.2,2638.9,3.86511007]
[1729586422587,0.01,2639.1,2639.0,0.03902461]
[1729586422968,0.01,2639.1,2638.9,3.78935]
[1729586423285,0.01,2639.1,2639.0,0.03946301]
[1729586423979,0.01,2639.1,2639.0,3.82877301]
[1729586424588,0.01,2639.1,2639.0,0.03946301]
[1729586424740,0.7602,2639.5,2639.4,3.78873]
[1729586424946,0.7602,2639.5,2639.4,3.82804667]
[1729586426269,0.7602,2639.5,2639.4,0.03931667]
[1729586426442,4.54879,2639.5,2639.4,0.03931667]
[1729586426775,0.01,2639.3,2638.9,3.78937]
[1729586426944,0.01,2639.3,2639.0,0.03995256]
[1729586427485,0.7702,2639.5,2639.0,0.03995256]
[1729586427684,0.7702,2639.5,2639.1,3.78917]
[1729586428056,0.7702,2639.5,2639.3,3.78879]
[1729586428400,0.7702,2639.5,2639.4,0.03980622]
[1729586428943,0.01,2639.7,2639.5,3.78858]
[1729586429144,5.1280736,2640.0,2639.7,3.7883]
[1729586429373,5.1280736,2640.0,2639.9,3.78802]
[1729586429574,5.1280736,2640.0,2639.9,3.82764335]
[1729586429971,5.1280736,2640.0,2639.9,0.03962335]
[1729586430375,5.1280736,2640.0,2639.9,3.82764335]
[1729586432245,5.1280736,2640.0,2639.9,3.86775312]
[1729586432956,5.1280736,2640.0,2639.9,4.63333643]
[1729586434088,5.1280736,2640.0,2639.9,4.70908897]
[1729586434648,5.1280736,2640.0,2639.9,4.63333643]
[1729586435089,5.1280736,2640.0,2639.9,4.70908902]
[1729586435558,5.1280736,2640.0,2639.9,4.63333643]
[1729586441153,5.1280736,2640.0,2639.9,8.46578749]
[1729586441359,5.1280736,2640.0,2639.9,11.90494874]
[1729586442275,5.1280736,2640.0,2639.9,11.91494874]
[1729586442787,3.2341336,2640.0,2639.9,11.91494874]
[1729586444100,3.6e-06,2640.0,2639.9,11.91494874]
[1729586444506,3.6e-06,2640.0,2639.9,14.29068179]
[1729586444811,3.6e-06,2640.0,2639.9,11.91494874]
[1729586445299,3.6e-06,2640.0,2639.9,14.28852643]
[1729586445920,4.37845068,2641.9,2639.9,14.28852643]
[1729586445921,0.7945,2641.6,2641.5,3.78572]
[1729586446207,0.01,2642.0,2641.4,3.78583]
[1729586446208,0.8045,2642.0,2641.4,3.78583]
[1729586446362,0.01,2641.8,2641.5,0.0781907]
[1729586446562,0.7945,2641.7,2641.5,0.0781907]
[1729586447225,0.01,2641.6,2641.5,0.0781907]
[1729586447409,1.263487,2641.6,2641.5,0.0781907]
[1729586447568,1.263487,2641.6,2641.1,3.86189077]
[1729586447764,0.7945,2641.6,2641.2,3.86324862]
[1729586447962,0.7945,2641.6,2641.3,3.78592]
[1729586448190,0.7945,2641.6,2641.4,0.07702253]
[1729586448363,3.44014354,2642.6,2641.5,0.8241]
[1729586448364,0.01,2642.0,2641.5,0.8241]
[1729586448565,0.01,2642.0,2641.7,3.78535]
[1729586448759,0.01,2642.0,2641.8,0.15257995]
[1729586449811,0.01,2642.2,2641.8,0.15257995]
[1729586450028,0.01,2642.0,2641.8,0.07688175]
[1729586450381,0.01,2642.2,2641.9,0.07569681]
[1729586450719,0.01,2642.2,2642.0,0.07678296]
[1729586451015,3.79392,2642.8,2642.1,0.07569283]
[1729586451016,0.01,2642.8,2642.1,0.07569283]
[1729586451225,0.8231,2642.9,2642.6,3.78415]
[1729586451711,0.8231,2642.9,2642.5,3.78429]
[1729586451915,0.8231,2642.9,2642.6,0.07655486]
[1729586452347,0.8231,2642.9,2642.4,0.55]
[1729586452551,0.8231,2642.9,2642.6,0.07655486]
[1729586452720,0.8231,2642.9,2642.5,0.07659287]
[1729586452721,0.01,2642.8,2642.5,0.07659287]
[1729586453054,7.67508591,2642.7,2642.6,0.07655486]
[1729586453207,8.4435945,2642.7,2642.6,0.07655486]
[1729586453407,3.78417,2642.6,2642.0,3.0]
[1729586453608,3.78417,2642.6,2642.1,0.07674493]
[1729586454546,1.69468219,2642.7,2642.1,0.15243327]
[1729586454734,0.01,2642.5,2642.1,0.15243327]
[1729586455137,0.9261736,2642.7,2642.1,3.93728327]
[1729586455467,0.9361736,2642.7,2642.1,3.93728327]
[1729586455637,0.9361736,2642.7,2642.2,3.78468]
[1729586456044,0.9361736,2642.7,2642.3,0.07568546]
[1729586456249,1.40818396,2642.7,2642.3,0.07568546]
[1729586456426,1.40818396,2642.7,2642.2,7.56936]
[1729586456635,1.40818396,2642.7,2642.4,0.07564745]
[1729586456924,1.40818396,2642.7,2642.3,0.07568546]
[1729586457148,1.40818396,2642.7,2642.4,0.07564745]
[1729586457354,1.40818396,2642.7,2642.2,3.78468]
[1729586457541,1.40818396,2642.7,2642.3,0.07568546]
[1729586457867,1.40818396,2642.7,2642.2,3.78468]
[1729586458029,1.40818396,2642.7,2642.4,0.07564745]
[1729586458221,1.40818396,2642.7,2642.3,0.07568546]
[1729586458424,1.40818396,2642.7,2642.4,0.07568]
[1729586458661,4.7202636,2642.7,2642.5,0.07560944]
[1729586458859,0.9361736,2642.7,2642.5,0.07560944]
[1729586459064,0.9361736,2642.7,2642.2,3.78463]
[1729586459276,0.9361736,2642.7,2642.6,0.07557143]
[1729586459430,0.9361736,2642.7,2642.3,3.7845]
[1729586459626,0.9361736,2642.7,2642.6,0.07557143]
[1729586459902,0.9361736,2642.7,2642.2,7.56925]
[1729586460071,0.9361736,2642.7,2642.6,0.07557143]
[1729586460579,0.9361736,2642.7,2642.1,4.33474]
[1729586460906,4.7202536,2642.7,2642.2,0.07572348]
[1729586461210,0.9361736,2642.7,2642.2,3.86036348]
[1729586461513,0.01,2642.3,2642.2,0.07572348]
[1729586461814,0.01,2642.3,2641.9,3.78502]
[1729586462017,0.01,2642.3,2642.0,0.07579952]
[1729586462364,0.01,2642.3,2641.0,4.27050524]
[1729586462365,0.01,2641.8,2641.5,0.01894693]
[1729586462611,0.01,2641.6,2641.1,0.815]
[1729586462793,0.01,2641.6,2641.2,3.78603]
[1729586462997,0.7606,2641.7,2641.3,3.78599]
[1729586463172,0.7606,2641.7,2641.4,3.78586]
[1729586463367,0.7606,2641.7,2641.3,3.78599]
[1729586463711,0.7606,2641.7,2641.1,4.60122]
[1729586463712,0.7606,2641.7,2641.2,3.0]
[1729586463880,0.01,2641.5,2641.1,0.815]
[1729586464215,0.01,2641.5,2641.0,3.0]
[1729586464371,0.01,2641.5,2641.1,3.8619127]
[1729586464574,0.01,2641.5,2641.1,3.7862]
[1729586465910,0.01,2641.5,2641.1,3.0]
[1729586466128,0.01,2641.5,2641.1,3.78627]
[1729586467079,0.01,2641.5,2641.0,0.55]
[1729586467278,3.79574,2641.5,2641.0,0.55]
[1729586467517,0.01,2641.3,2640.8,0.55]
[1729586467702,0.01,2641.3,2641.1,0.07347916]
[1729586467902,0.01,2641.3,2640.8,4.33672]
[1729586468238,0.01,2641.3,2640.5,0.7789]
[1729586468239,0.01,2641.1,2640.5,3.78704]
[1729586468452,0.01,2641.1,2640.9,0.07356095]
[1729586468453,0.7515,2641.0,2640.9,0.07356095]
[1729586468745,0.7515,2641.0,2640.5,7.57411]
[1729586468915,0.7515,2641.0,2640.9,0.07362348]
[1729586469115,0.7515,2641.0,2640.5,3.78704]
[1729586469628,0.7515,2641.0,2640.6,0.07373766]
[1729586470548,0.7515,2641.0,2640.6,3.86074766]
[1729586471207,0.7515,2641.0,2640.6,0.07373766]
[1729586471408,0.7515,2641.0,2640.7,3.78686]
[1729586471727,0.7515,2641.0,2640.8,0.07383779]
[1729586472106,0.7515,2641.0,2640.7,0.55]
[1729586472305,0.7515,2641.0,2640.9,0.07379973]
[1729586472510,0.7515,2641.0,2640.8,0.07383779]
[1729586472709,0.7515,2641.0,2640.9,0.07379973]
[1729586473116,0.7515,2641.0,2640.7,3.78687]
[1729586473445,0.7515,2641.0,2640.8,0.07383779]
[1729586473853,0.7515,2641.0,2640.7,3.78687]
[1729586474023,0.7515,2641.0,2640.9,0.07379973]
[1729586474350,0.7515,2641.0,2640.7,3.78687]
[1729586474547,0.7515,2641.0,2640.9,0.07379973]
[1729586475086,0.7515,2641.0,2640.4,3.0]
[1729586475087,0.01,2640.8,2640.4,3.0]
[1729586475447,0.01,2640.8,2640.4,6.78729]
[1729586475780,0.01,2640.8,2640.4,8.36431436]
[1729586475982,0.01,2640.8,2640.4,4.57702436]
[1729586476285,0.01,2640.8,2640.4,3.0]
[1729586476699,0.01,2640.8,2640.4,6.78718]
[1729586477200,0.01,2640.8,2640.5,3.78712]
[1729586477406,3.78623,2641.2,2640.6,3.78701]
[1729586477407,0.8359,2641.2,2640.6,3.78701]
[1729586477690,3.78568,2641.6,2640.6,3.78701]
[1729586477691,0.01,2641.4,2641.2,3.78604]
[1729586477897,0.01,2641.4,2640.9,1.3014]
[1729586477898,0.01,2641.4,2640.9,5.32842436]
[1729586478186,0.01,2641.4,2641.2,3.78602]
[1729586478405,0.8259,2641.6,2641.2,3.78602]
[1729586478406,0.8359,2641.6,2641.2,3.78602]
[1729586478907,0.8359,2641.6,2641.1,5.36328436]
[1729586479192,0.8359,2641.6,2641.1,3.0]
[1729586479193,0.01,2641.3,2641.1,3.0]
[1729586479695,0.01,2641.3,2641.1,6.78629]
[1729586480397,0.01,2641.3,2641.1,3.0]
[1729586480552,0.01,2641.3,2641.1,7.69772744]
[1729586481860,0.01,2641.3,2641.0,3.78635]
[1729586482056,0.01,2641.0,2640.8,1.57702436]
[1729586482274,0.01,2641.0,2640.5,3.78708]
[1729586482507,0.01,2641.0,2640.5,7.57415]
[1729586482859,0.01,2641.0,2640.6,3.86170961]
[1729586483626,0.01,2641.0,2640.7,3.78686]
[1729586483933,0.01,2641.0,2640.8,0.07463349]
[1729586484286,0.01,2641.0,2640.7,7.57364]
[1729586484620,0.01,2641.0,2640.8,0.07463349]
[1729586484926,0.01,2641.0,2640.7,3.78678]
[1729586485231,0.01,2641.0,2640.8,0.07463349]
[1729586485735,0.01,2641.0,2640.7,3.78678]
[1729586485895,0.01,2641.0,2640.9,0.07459543]
[1729586486098,0.01,2641.0,2640.8,0.07463349]
[1729586486291,0.01,2641.0,2640.9,0.07459543]
[1729586486604,0.01,2641.0,2640.7,7.57357]
[1729586486605,0.01,2641.0,2640.7,3.78678]
[1729586487000,0.01,2641.0,2640.8,0.07463349]
[1729586487229,0.01,2641.0,2640.7,3.78678]
[1729586487526,0.01,2641.0,2640.8,0.07463349]
[1729586488034,0.01,2641.0,2640.7,3.78678]
[1729586488035,0.01,2641.0,2640.9,0.07460113]
[1729586488334,0.01,2641.0,2640.7,3.78678]
[1729586488513,0.01,2641.0,2640.9,0.07460113]
[1729586488720,0.01,2641.0,2640.8,0.07463919]
[1729586489035,0.01,2641.0,2640.9,0.07460113]
[1729586489189,0.01,2641.0,2640.6,3.78699]
[1729586489389,0.01,2641.0,2640.7,0.07467725]
[1729586489625,0.01,2641.0,2640.7,3.86151725]
[1729586491131,0.01,2641.0,2640.7,0.07467725]
[1729586491531,0.01,2640.8,2640.5,3.78703]
[1729586492146,0.01,2640.8,2640.5,7.57411]
[1729586492331,0.01,2640.8,2640.6,0.07573249]
[1729586492951,0.01,2640.8,2640.5,7.5741]
[1729586493273,0.01,2640.8,2640.5,3.78703]
[1729586493474,0.7833,2640.7,2640.3,3.78735]
[1729586493664,0.7833,2640.7,2640.4,3.78719]
[1729586493974,0.7833,2640.7,2640.4,3.7873]
[1729586494934,0.01,2640.4,2640.1,0.01894693]
[1729586495141,0.01,2640.2,2639.7,0.7994]
[1729586495340,3.79796,2640.0,2639.5,0.7994]
[1729586495601,3.79796,2640.0,2639.2,3.78892]
[1729586495602,0.8186,2639.7,2639.2,3.78892]
[1729586495801,0.01,2639.6,2639.0,0.81834693]
[1729586496078,0.01,2639.6,2639.2,3.78889]
[1729586496289,0.01,2639.4,2639.0,4.58862]
[1729586496592,0.01,2639.4,2639.0,5.047482]
[1729586496739,0.8277,2639.1,2638.8,3.78952]
[1729586497368,0.8277,2639.1,2638.6,3.78981]
[1729586497632,0.8277,2639.1,2638.4,3.79009]
[1729586497633,0.01,2638.7,2638.4,3.79009]
[1729586497780,0.01,2638.7,2638.5,3.78999]
[1729586497977,0.01,2638.7,2638.2,4.59034]
[1729586498165,0.7979,2638.6,2638.2,3.79034]
[1729586498556,0.7979,2638.6,2638.0,3.79069]
[1729586498557,0.01,2638.5,2638.0,3.79069]
[1729586498877,0.01,2638.5,2638.1,3.79052]
[1729586499037,0.7979,2638.6,2638.0,4.25158369]
[1729586499038,0.01,2638.3,2638.0,4.25158369]
[1729586499653,0.01,2638.0,2637.9,0.01894693]
[1729586499853,0.01,2638.0,2637.9,3.79088]
[1729586501876,0.01,2638.0,2637.9,3.8666902]
[1729586502193,0.73571526,2830.9,2638.4,3.79017]
[1729586502194,0.01,2638.5,2638.4,3.79017]
[1729586502366,0.01,2638.8,2638.7,3.78974]
[1729586502562,0.01,2639.0,2638.8,3.7896]
[1729586502763,0.01,2639.0,2638.9,3.78945]
[1729586503068,0.01,2639.0,2638.8,3.7896]
[1729586503497,0.01,2639.0,2638.9,3.78945]
[1729586503981,0.01,2639.0,2638.8,3.7896]
[1729586504181,0.01,2639.0,2638.6,7.57961]
[1729586504382,0.01,2639.0,2638.7,3.7897]
[1729586504568,0.01,2639.0,2638.6,3.7898]
[1729586504750,0.01,2639.0,2638.8,3.78959]
[1729586505151,0.01,2639.0,2638.8,7.57907]
[1729586505668,0.01,2639.0,2638.8,3.78948]
[1729586508198,0.01,2639.0,2638.9,3.78945]
[1729586512414,0.01,2639.0,2638.7,3.78973]
[1729586512415,0.01,2638.5,2638.4,4.57702436]
[1729586512626,0.01,2638.5,2638.4,3.79017]
[1729586512833,0.01,2638.5,2638.4,3.86228229]
[1729586513115,0.01,2638.5,2638.4,0.07211229]
[1729586513835,0.01,2638.5,2638.4,3.79017]
[1729586514123,0.01,2638.5,2638.4,3.86228229]
[1729586516482,0.01,2638.5,2638.4,4.62754052]
[1729586517321,0.01,2638.5,2638.4,3.86228229]
[1729586519137,0.01,2638.5,2638.4,3.86228229]
[1729586519582,0.8349,2638.8,2638.7,3.78974]
[1729586519778,0.8349,2638.8,2638.7,3.86062904]
[1729586520183,0.01,2638.8,2638.7,3.86062904]
[1729586520586,0.01,2638.8,2638.7,0.07088904]
[1729586520799,0.01,2638.8,2638.7,3.86062904]
[1729586521721,0.01,2638.8,2638.7,0.07088904]
[1729586523003,4.5535,2638.8,2638.2,7.58078]
[1729586523337,4.5535,2638.8,2638.2,3.79039]
[1729586523338,0.01,2638.3,2638.2,3.79039]
[1729586524495,0.01,2638.3,2638.2,3.8661907]
[1729586524698,0.796,2638.3,2638.2,3.79039]
[1729586524931,0.01,2638.3,2638.2,3.79039]
[1729586525805,0.8061,2638.8,2638.7,3.78974]
[1729586525806,0.8161,2638.8,2638.7,3.78974]
[1729586525990,0.01,2638.8,2638.7,3.78974]
[1729586526186,0.01,2638.8,2638.7,4.168714]
[1729586526387,0.01,2638.8,2638.7,0.378974]
[1729586526695,0.01,2638.8,2638.6,7.57968]
[1729586526897,0.01,2638.4,2638.3,3.79017]
[1729586527117,0.01,2638.2,2637.9,3.79079]
[1729586527430,0.01,2638.2,2638.0,3.7907]
[1729586527796,0.01,2638.2,2638.1,0.07115194]
[1729586529110,0.01,2638.2,2638.1,3.86175194]
[1729586529897,0.7667,2638.5,2638.1,0.07115194]
[1729586530098,3.78939,2639.0,2638.5,3.78995]
[1729586530099,0.01,2638.6,2638.5,3.78995]
[1729586530299,0.01,2638.7,2638.6,3.78988]
[1729586530603,0.01,2638.9,2638.8,3.7896]
[1729586531031,0.01,2638.9,2638.8,3.86048505]
[1729586531508,0.01,2638.9,2638.8,0.07088505]
[1729586532044,0.01,2638.9,2638.6,7.57958]
[1729586532197,0.01,2638.9,2638.7,0.07092317]
[1729586532399,0.01,2638.9,2638.7,3.86065317]
[1729586532823,0.01,2638.9,2638.8,3.7896]
[1729586533210,0.01,2638.9,2638.8,3.86048505]
[1729586533503,0.01,2638.9,2638.8,0.07088505]
[1729586533932,0.01,2638.9,2638.6,3.78977]
[1729586534150,0.01,2638.9,2638.8,0.07088505]
[1729586534641,0.01,2638.9,2638.6,3.78977]
[1729586534838,0.01,2638.9,2638.7,0.07092317]
[1729586535242,0.01,2638.9,2638.8,3.7896]
[1729586535448,0.01,2638.9,2638.8,3.86048505]
[1729586536238,0.01,2638.9,2638.8,0.07088505]
[1729586536547,0.01,2638.9,2638.7,7.57937]
[1729586536743,0.01,2639.1,2638.8,0.83748505]
[1729586536959,0.01,2639.3,2639.2,3.78902]
[1729586537352,0.01,2639.3,2639.2,3.85975261]
[1729586538187,0.01,2639.3,2639.2,5.43677697]
[1729586538342,0.01,2639.3,2639.2,3.85975261]
[1729586539385,0.01,2639.3,2639.2,5.43677697]
[1729586540387,0.01,2639.3,2639.2,6.55746497]
[1729586541151,0.01,2639.3,2639.2,6.96139368]
[1729586541495,0.01,2639.5,2639.4,3.78873]
[1729586541781,0.01,2639.5,2639.4,5.44642066]
[1729586542186,0.01,2639.5,2639.4,3.85895414]
[1729586544324,0.01,2639.5,2639.4,5.09299063]
[1729586546381,0.01,2639.5,2639.4,3.85895414]
[1729586546907,0.01,2639.5,2639.4,0.07022414]
[1729586547089,0.8081,2639.5,2639.4,0.07022414]
[1729586547290,0.8081,2639.5,2639.0,3.78931]
[1729586547490,0.8081,2639.5,2639.1,0.07015082]
[1729586548511,0.8081,2639.5,2639.2,3.78901]
[1729586548729,0.83684693,2639.7,2639.3,3.78879]
[1729586548875,0.01,2639.5,2639.4,3.78873]
[1729586549077,0.01,2639.5,2639.4,3.85868121]
[1729586549285,0.01,2639.5,2639.4,0.06995121]
[1729586549516,0.01,2639.5,2639.2,7.57784]
[1729586549725,0.01,2639.5,2639.4,0.06995121]
[1729586550017,0.01,2639.5,2639.3,3.78885]
[1729586550018,0.01,2639.5,2639.3,3.85883931]
[1729586550218,0.01,2639.5,2639.4,0.06995121]
[1729586552332,0.01,2639.7,2639.6,3.78845]
[1729586552482,0.01,2639.9,2639.7,3.7882]
[1729586552823,0.01,2639.9,2639.8,3.85793609]
[1729586553123,0.8365,2640.1,2639.8,3.85793609]
[1729586553339,0.01,2639.9,2639.8,0.06977609]
[1729586553482,0.7848,2639.9,2639.8,0.06977609]
[1729586553882,0.01,2639.7,2639.5,3.7885]
[1729586554078,0.01,2639.7,2639.6,3.85817152]
[1729586555327,0.01,2639.7,2639.6,4.6304152]
[1729586558229,0.01,2640.0,2639.6,0.8419652]
[1729586558431,0.01,2640.0,2639.9,3.78802]
[1729586558730,0.01,2640.0,2639.9,3.85752493]
[1729586562726,0.01,2640.0,2639.9,0.06950493]
[1729586562913,0.01,2640.0,2639.9,3.85752493]
[1729586563591,0.01,2640.0,2639.9,0.06950493]
[1729586564215,0.468931,2640.0,2639.6,3.78844]
[1729586564422,0.01,2640.0,2639.9,0.0692264]
[1729586564592,0.01,2639.8,2639.5,3.86429426]
[1729586564929,0.01,2639.8,2639.6,3.85775067]
[1729586565085,0.01,2639.8,2639.7,3.7883]
[1729586565285,0.01,2639.8,2639.7,3.85760258]